[Event "Late-Titled-Tuesday-Blitz-September-05-2023"]
[Site "Chess.com"]
[Date "2023.09.05"]
[Round "2"]
[White "jefferyx"]
[Black "czasnaszachy"]
[Result "1-0"]
[WhiteElo "3029"]
[BlackElo "2497"]
[TimeControl "180+1"]
[EndTime "14:14:56 PDT"]
[Termination "jefferyx won by resignation"]

1. e4 {[%clk 0:03:00.9]} 1... c5 {[%clk 0:02:59.6]} 2. Nf3 {[%clk 0:03:01.2]}
2... e6 {[%clk 0:02:59.8]} 3. c3 {[%clk 0:03:01.4]} 3... d5 {[%clk 0:02:58.4]}
4. e5 {[%clk 0:03:01.8]} 4... d4 {[%clk 0:02:55.3]} 5. d3 {[%clk 0:03:02.3]}
5... Nc6 {[%clk 0:02:53.3]} 6. g3 {[%clk 0:03:02.6]} 6... Nge7 {[%clk
0:02:36.3]} 7. Bg2 {[%clk 0:03:02.9]} 7... Ng6 {[%clk 0:02:36.6]} 8. Qe2 {[%clk
0:03:03.2]} 8... Be7 {[%clk 0:02:35.1]} 9. O-O {[%clk 0:03:03.2]} 9... Qc7
{[%clk 0:02:34.5]} 10. Re1 {[%clk 0:03:03]} 10... O-O {[%clk 0:02:30.5]} 11. h4
{[%clk 0:03:02.9]} 11... f6 {[%clk 0:02:24.6]} 12. cxd4 {[%clk 0:03:03]} 12...
cxd4 {[%clk 0:02:12.8]} 13. exf6 {[%clk 0:03:03.2]} 13... Bxf6 {[%clk
0:02:12.4]} 14. Na3 {[%clk 0:03:03.4]} 14... e5 {[%clk 0:02:02.9]} 15. Nd2
{[%clk 0:02:54.5]} 15... Kh8 {[%clk 0:01:55.8]} 16. Ne4 {[%clk 0:02:53.6]} 16...
Nge7 {[%clk 0:01:51.2]} 17. Nc4 {[%clk 0:02:48.4]} 17... Bd7 {[%clk 0:01:33.4]}
18. Bd2 {[%clk 0:02:48.4]} 18... Rae8 {[%clk 0:01:33.2]} 19. Rac1 {[%clk
0:02:48.1]} 19... Qb8 {[%clk 0:01:29]} 20. b4 {[%clk 0:02:37.5]} 20... Nc8
{[%clk 0:01:20.4]} 21. b5 {[%clk 0:02:36.6]} 21... N6e7 {[%clk 0:01:19.8]} 22.
a4 {[%clk 0:02:35.4]} 22... Nd5 {[%clk 0:01:14.9]} 23. Nc5 {[%clk 0:02:35.3]}
23... Ndb6 {[%clk 0:01:05.3]} 24. Nxb6 {[%clk 0:02:33.9]} 24... Nxb6 {[%clk
0:01:05.1]} 25. a5 {[%clk 0:02:34.5]} 25... Bxb5 {[%clk 0:00:58.8]} 26. axb6
{[%clk 0:02:34.7]} 26... axb6 {[%clk 0:00:59.3]} 27. Ne4 {[%clk 0:02:35]} 27...
Be7 {[%clk 0:00:56.2]} 28. Rb1 {[%clk 0:02:35]} 28... Bc6 {[%clk 0:00:54.6]} 29.
Rxb6 {[%clk 0:02:35.5]} 29... Qc7 {[%clk 0:00:38.8]} 30. Reb1 {[%clk 0:02:35.5]}
30... Ra8 {[%clk 0:00:34.4]} 31. Bg5 {[%clk 0:02:32.3]} 1-0

[Event "Late-Titled-Tuesday-Blitz-September-05-2023"]
[Site "Chess.com"]
[Date "2023.09.05"]
[Round "2"]
[White "petr577"]
[Black "reevecanada"]
[Result "0-1"]
[WhiteElo "2333"]
[BlackElo "2547"]
[TimeControl "180+1"]
[EndTime "14:14:57 PDT"]
[Termination "reevecanada won by checkmate"]

1. d4 {[%clk 0:02:56.7]} 1... Nf6 {[%clk 0:02:58.6]} 2. Bg5 {[%clk 0:02:56.5]}
2... Ne4 {[%clk 0:02:58.5]} 3. Bf4 {[%clk 0:02:56.5]} 3... d5 {[%clk 0:02:58.1]}
4. f3 {[%clk 0:02:56.6]} 4... Nd6 {[%clk 0:02:57.4]} 5. Nc3 {[%clk 0:02:57.2]}
5... c6 {[%clk 0:02:56.9]} 6. e4 {[%clk 0:02:57.5]} 6... e6 {[%clk 0:02:57.4]}
7. Qd3 {[%clk 0:02:47.7]} 7... Be7 {[%clk 0:02:56.3]} 8. O-O-O {[%clk
0:02:46.7]} 8... Bg5 {[%clk 0:02:56]} 9. Bxg5 {[%clk 0:02:42.4]} 9... Qxg5+
{[%clk 0:02:56.9]} 10. Kb1 {[%clk 0:02:42.9]} 10... b5 {[%clk 0:02:55.8]} 11. h4
{[%clk 0:02:40.7]} 11... Qe7 {[%clk 0:02:53.1]} 12. h5 {[%clk 0:02:31]} 12... a5
{[%clk 0:02:50.7]} 13. h6 {[%clk 0:02:28.2]} 13... g6 {[%clk 0:02:50.1]} 14. e5
{[%clk 0:01:37.2]} 14... Nc4 {[%clk 0:02:47.8]} 15. Nh3 {[%clk 0:01:30.3]} 15...
Ba6 {[%clk 0:02:44.6]} 16. Nf2 {[%clk 0:01:26]} 16... b4 {[%clk 0:02:43.2]} 17.
Na4 {[%clk 0:01:11.4]} 17... Na3+ {[%clk 0:02:42.1]} 18. bxa3 {[%clk 0:01:00.8]}
18... Bxd3 {[%clk 0:02:41.6]} 19. Bxd3 {[%clk 0:00:43.3]} 19... bxa3 {[%clk
0:02:40]} 20. Nc5 {[%clk 0:00:39.4]} 20... Nd7 {[%clk 0:02:34.6]} 21. Nxd7
{[%clk 0:00:39.4]} 21... Qb4+ {[%clk 0:02:33.5]} 22. Kc1 {[%clk 0:00:39.8]}
22... Qc3 {[%clk 0:02:32.7]} 23. Nc5 {[%clk 0:00:19.5]} 23... Rb8 {[%clk
0:02:31.8]} 24. Ng4 {[%clk 0:00:13.5]} 24... Rb1+ {[%clk 0:02:30]} 25. Kxb1
{[%clk 0:00:13.8]} 25... Qb2# {[%clk 0:02:30.1]} 0-1

[Event "Late-Titled-Tuesday-Blitz-September-05-2023"]
[Site "Chess.com"]
[Date "2023.09.05"]
[Round "2"]
[White "Aradhya2000"]
[Black "StellarChessPro"]
[Result "1/2-1/2"]
[WhiteElo "2722"]
[BlackElo "2514"]
[TimeControl "180+1"]
[EndTime "14:15:00 PDT"]
[Termination "Game drawn by repetition"]

1. d4 {[%clk 0:03:00.9]} 1... a6 {[%clk 0:03:00.9]} 2. e4 {[%clk 0:02:59.6]}
2... c6 {[%clk 0:03:00.5]} 3. Nf3 {[%clk 0:02:49.8]} 3... d5 {[%clk 0:03:00.7]}
4. Nc3 {[%clk 0:02:49.1]} 4... dxe4 {[%clk 0:03:00.8]} 5. Nxe4 {[%clk 0:02:50]}
5... Nf6 {[%clk 0:03:01.1]} 6. Nxf6+ {[%clk 0:02:50.5]} 6... exf6 {[%clk
0:03:02]} 7. Bc4 {[%clk 0:02:50.5]} 7... Bd6 {[%clk 0:03:02.4]} 8. Qe2+ {[%clk
0:02:50.8]} 8... Qe7 {[%clk 0:03:02.6]} 9. Qxe7+ {[%clk 0:02:50.9]} 9... Kxe7
{[%clk 0:03:03.5]} 10. O-O {[%clk 0:02:51.3]} 10... Re8 {[%clk 0:02:56.8]} 11.
a4 {[%clk 0:02:48.6]} 11... Kf8 {[%clk 0:02:56.7]} 12. a5 {[%clk 0:02:48.8]}
12... Bf5 {[%clk 0:02:55.8]} 13. c3 {[%clk 0:02:49.1]} 13... Nd7 {[%clk
0:02:53.9]} 14. b4 {[%clk 0:02:46.5]} 14... Re7 {[%clk 0:02:46.7]} 15. Bd2
{[%clk 0:02:45]} 15... Rae8 {[%clk 0:02:46.1]} 16. Rfe1 {[%clk 0:02:45.5]} 16...
Rxe1+ {[%clk 0:02:45.7]} 17. Rxe1 {[%clk 0:02:46.1]} 17... Rxe1+ {[%clk
0:02:45.7]} 18. Nxe1 {[%clk 0:02:46.9]} 18... Be6 {[%clk 0:02:44.2]} 19. Bd3
{[%clk 0:02:46.5]} 19... g6 {[%clk 0:02:44.3]} 20. h4 {[%clk 0:02:46]} 20... f5
{[%clk 0:02:44.4]} 21. h5 {[%clk 0:02:45.6]} 21... Nf6 {[%clk 0:02:43.7]} 22.
hxg6 {[%clk 0:02:45.6]} 22... fxg6 {[%clk 0:02:44.6]} 23. f3 {[%clk 0:02:43.3]}
23... Nd5 {[%clk 0:02:41.7]} 24. Nc2 {[%clk 0:02:43.1]} 24... Bf4 {[%clk
0:02:40.5]} 25. Be1 {[%clk 0:02:42.6]} 25... Bd6 {[%clk 0:02:32.9]} 26. c4
{[%clk 0:02:40]} 26... Nc7 {[%clk 0:02:31.7]} 27. Kf2 {[%clk 0:02:30.4]} 27...
Kg7 {[%clk 0:02:31.3]} 28. Bc3 {[%clk 0:02:29.2]} 28... Kf7 {[%clk 0:02:29.8]}
29. g3 {[%clk 0:02:23.6]} 29... f4 {[%clk 0:02:23.3]} 30. g4 {[%clk 0:02:23.3]}
30... h5 {[%clk 0:02:21.3]} 31. gxh5 {[%clk 0:02:23]} 31... gxh5 {[%clk
0:02:22.2]} 32. d5 {[%clk 0:02:16.9]} 32... cxd5 {[%clk 0:02:19.3]} 33. c5
{[%clk 0:02:17.2]} 33... Be7 {[%clk 0:02:12.9]} 34. Be5 {[%clk 0:02:17.2]} 34...
Bh4+ {[%clk 0:02:08.8]} 35. Kg2 {[%clk 0:02:17]} 35... Nb5 {[%clk 0:02:02.1]}
36. Bxf4 {[%clk 0:02:16.7]} 36... Kf6 {[%clk 0:01:55.3]} 37. Bxb5 {[%clk
0:01:58.7]} 37... axb5 {[%clk 0:01:56.2]} 38. Nd4 {[%clk 0:01:58.8]} 38... Be1
{[%clk 0:01:50]} 39. Nc2 {[%clk 0:01:53.7]} 39... Bc3 {[%clk 0:01:47.6]} 40. Be3
{[%clk 0:01:51.3]} 40... Ke5 {[%clk 0:01:42.4]} 41. Bh6 {[%clk 0:01:51.3]} 41...
Kf6 {[%clk 0:01:37.1]} 42. Be3 {[%clk 0:01:51.2]} 42... Ke5 {[%clk 0:01:37.3]}
43. Bh6 {[%clk 0:01:50.9]} 43... Kf6 {[%clk 0:01:36]} 44. Be3 {[%clk 0:01:50.9]}
1/2-1/2

[Event "Late-Titled-Tuesday-Blitz-September-05-2023"]
[Site "Chess.com"]
[Date "2023.09.05"]
[Round "2"]
[White "BeautiFullMindChess"]
[Black "Malev212"]
[Result "1/2-1/2"]
[WhiteElo "2348"]
[BlackElo "2647"]
[TimeControl "180+1"]
[EndTime "14:15:12 PDT"]
[Termination "Game drawn by repetition"]

1. e4 {[%clk 0:02:53.5]} 1... c6 {[%clk 0:02:58.7]} 2. d4 {[%clk 0:02:53.1]}
2... d5 {[%clk 0:02:58.6]} 3. exd5 {[%clk 0:02:54]} 3... cxd5 {[%clk 0:02:58.1]}
4. Bd3 {[%clk 0:02:54.2]} 4... Nc6 {[%clk 0:02:57.7]} 5. c3 {[%clk 0:02:54.6]}
5... Qc7 {[%clk 0:02:56.1]} 6. h3 {[%clk 0:02:53.1]} 6... e6 {[%clk 0:02:48]} 7.
Nf3 {[%clk 0:02:53.2]} 7... Bd6 {[%clk 0:02:47.4]} 8. O-O {[%clk 0:02:50.9]}
8... Nge7 {[%clk 0:02:47.2]} 9. Na3 {[%clk 0:02:40.6]} 9... Bxa3 {[%clk
0:02:38.8]} 10. bxa3 {[%clk 0:02:41.5]} 10... O-O {[%clk 0:02:27.7]} 11. Bxh7+
{[%clk 0:02:33.5]} 11... Kxh7 {[%clk 0:02:26.5]} 12. Ng5+ {[%clk 0:02:25.6]}
12... Kg6 {[%clk 0:02:26]} 13. Qg4 {[%clk 0:02:02.1]} 13... f5 {[%clk
0:02:13.2]} 14. Qh4 {[%clk 0:02:01.7]} 14... Bd7 {[%clk 0:02:03.7]} 15. Qh7+
{[%clk 0:01:58.5]} 15... Kf6 {[%clk 0:02:02.7]} 16. Qh5 {[%clk 0:01:46.6]} 16...
Ng6 {[%clk 0:01:21]} 17. Nh7+ {[%clk 0:01:36.3]} 17... Kf7 {[%clk 0:01:21]} 18.
Ng5+ {[%clk 0:01:31.4]} 18... Kf6 {[%clk 0:01:21]} 19. Nh7+ {[%clk 0:01:17.8]}
19... Kf7 {[%clk 0:01:21]} 20. Ng5+ {[%clk 0:01:01.1]} 20... Kf6 {[%clk
0:01:20.8]} 1/2-1/2

[Event "Late-Titled-Tuesday-Blitz-September-05-2023"]
[Site "Chess.com"]
[Date "2023.09.05"]
[Round "2"]
[White "Leo_C"]
[Black "FairChess_on_YouTube"]
[Result "0-1"]
[WhiteElo "2601"]
[BlackElo "3055"]
[TimeControl "180+1"]
[EndTime "14:15:20 PDT"]
[Termination "FairChess_on_YouTube won by resignation"]

1. d4 {[%clk 0:03:00.9]} 1... Nf6 {[%clk 0:02:58.4]} 2. c4 {[%clk 0:03:01]} 2...
g6 {[%clk 0:02:58.5]} 3. Nc3 {[%clk 0:03:01]} 3... Bg7 {[%clk 0:02:58.9]} 4. e4
{[%clk 0:03:00.9]} 4... O-O {[%clk 0:02:59.5]} 5. h3 {[%clk 0:02:58.2]} 5... d6
{[%clk 0:02:57.8]} 6. Be3 {[%clk 0:02:57.9]} 6... Nc6 {[%clk 0:02:54.3]} 7. Nf3
{[%clk 0:02:48.7]} 7... e5 {[%clk 0:02:54.2]} 8. d5 {[%clk 0:02:48.3]} 8... Nd4
{[%clk 0:02:54.3]} 9. Nxd4 {[%clk 0:02:46.7]} 9... exd4 {[%clk 0:02:54.3]} 10.
Bxd4 {[%clk 0:02:47.1]} 10... Re8 {[%clk 0:02:54.2]} 11. Bd3 {[%clk 0:02:14.1]}
11... Bf5 {[%clk 0:02:54]} 12. O-O {[%clk 0:02:10.8]} 12... Nxe4 {[%clk
0:02:53.6]} 13. Bxg7 {[%clk 0:02:10]} 13... Kxg7 {[%clk 0:02:53.2]} 14. Bxe4
{[%clk 0:02:05]} 14... Bxe4 {[%clk 0:02:54.1]} 15. Re1 {[%clk 0:01:21.2]} 15...
Bf5 {[%clk 0:02:51.8]} 16. Qd4+ {[%clk 0:01:15.2]} 16... Qf6 {[%clk 0:02:51.5]}
17. Qxf6+ {[%clk 0:01:14.4]} 17... Kxf6 {[%clk 0:02:52.4]} 18. Nb5 {[%clk
0:01:14.8]} 18... Bd7 {[%clk 0:02:40.2]} 19. Nd4 {[%clk 0:00:55.2]} 19... a6
{[%clk 0:02:34.5]} 20. f4 {[%clk 0:00:47.6]} 20... b5 {[%clk 0:02:34.2]} 21. b3
{[%clk 0:00:44.5]} 21... bxc4 {[%clk 0:02:33.8]} 22. bxc4 {[%clk 0:00:45.1]}
22... Rxe1+ {[%clk 0:02:33.8]} 23. Rxe1 {[%clk 0:00:44.8]} 23... Rb8 {[%clk
0:02:34.7]} 24. Nb3 {[%clk 0:00:44]} 24... Rb4 {[%clk 0:02:34.2]} 25. Rc1 {[%clk
0:00:39.7]} 25... Ra4 {[%clk 0:02:34.4]} 26. Rc2 {[%clk 0:00:33]} 26... Bf5
{[%clk 0:02:34.1]} 27. Rc1 {[%clk 0:00:32.1]} 27... Rxa2 {[%clk 0:02:33]} 28. c5
{[%clk 0:00:30.9]} 28... Be4 {[%clk 0:02:32.6]} 29. cxd6 {[%clk 0:00:30]} 29...
cxd6 {[%clk 0:02:33.5]} 30. Rc6 {[%clk 0:00:28.4]} 30... Rxg2+ {[%clk
0:02:31.6]} 31. Kf1 {[%clk 0:00:28.9]} 31... Rg3 {[%clk 0:02:29.4]} 32. Rxd6+
{[%clk 0:00:24.5]} 32... Ke7 {[%clk 0:02:27.1]} 33. Nc5 {[%clk 0:00:22.7]} 33...
Bd3+ {[%clk 0:02:25.1]} 0-1

[Event "Late-Titled-Tuesday-Blitz-September-05-2023"]
[Site "Chess.com"]
[Date "2023.09.05"]
[Round "2"]
[White "Evhen_Taranenko"]
[Black "ilya2700"]
[Result "0-1"]
[WhiteElo "2451"]
[BlackElo "2246"]
[TimeControl "180+1"]
[EndTime "14:15:25 PDT"]
[Termination "ilya2700 won by resignation"]

1. e4 {[%clk 0:03:00.9]} 1... e5 {[%clk 0:03:00.3]} 2. Nf3 {[%clk 0:03:00.3]}
2... Nc6 {[%clk 0:03:00.6]} 3. c3 {[%clk 0:03:00]} 3... Nf6 {[%clk 0:02:39.5]}
4. d4 {[%clk 0:02:53.7]} 4... exd4 {[%clk 0:02:35.8]} 5. e5 {[%clk 0:02:53.8]}
5... Nd5 {[%clk 0:02:36.4]} 6. cxd4 {[%clk 0:02:54.3]} 6... d6 {[%clk
0:02:36.7]} 7. exd6 {[%clk 0:02:37.8]} 7... Bxd6 {[%clk 0:02:35.5]} 8. Nc3
{[%clk 0:02:37.7]} 8... Nxc3 {[%clk 0:02:33.5]} 9. bxc3 {[%clk 0:02:38.6]} 9...
O-O {[%clk 0:02:34.2]} 10. Bd3 {[%clk 0:02:37.5]} 10... Re8+ {[%clk 0:02:34]}
11. Be3 {[%clk 0:02:37.3]} 11... Bg4 {[%clk 0:02:24.3]} 12. O-O {[%clk
0:02:34.5]} 12... Qf6 {[%clk 0:02:21.7]} 13. Be2 {[%clk 0:02:32.4]} 13... Qg6
{[%clk 0:01:43.2]} 14. Kh1 {[%clk 0:02:15]} 14... Qh5 {[%clk 0:01:34.4]} 15. g3
{[%clk 0:01:54.3]} 15... Bxg3 {[%clk 0:01:27.9]} 16. fxg3 {[%clk 0:01:35.6]}
16... Rxe3 {[%clk 0:01:27]} 17. Kg2 {[%clk 0:01:23.8]} 17... Rae8 {[%clk
0:01:16.4]} 18. Rf2 {[%clk 0:01:19.5]} 18... Rxe2 {[%clk 0:01:11.8]} 19. Rxe2
{[%clk 0:01:04.5]} 19... Bxf3+ {[%clk 0:01:10.3]} 0-1

[Event "Late-Titled-Tuesday-Blitz-September-05-2023"]
[Site "Chess.com"]
[Date "2023.09.05"]
[Round "2"]
[White "Druid24"]
[Black "Akhayan"]
[Result "1/2-1/2"]
[WhiteElo "2666"]
[BlackElo "2369"]
[TimeControl "180+1"]
[EndTime "14:15:33 PDT"]
[Termination "Game drawn by repetition"]

1. d4 {[%clk 0:02:59.6]} 1... Nf6 {[%clk 0:02:59.3]} 2. Bg5 {[%clk 0:03:00]}
2... g6 {[%clk 0:02:58.9]} 3. Nd2 {[%clk 0:02:59.9]} 3... Bg7 {[%clk 0:02:54.4]}
4. e4 {[%clk 0:02:59.1]} 4... d6 {[%clk 0:02:54.1]} 5. Bd3 {[%clk 0:02:58.6]}
5... O-O {[%clk 0:02:54.2]} 6. Ngf3 {[%clk 0:02:58.2]} 6... Nc6 {[%clk 0:02:44]}
7. c3 {[%clk 0:02:57.5]} 7... Bg4 {[%clk 0:02:42.6]} 8. h3 {[%clk 0:02:56.1]}
8... Bxf3 {[%clk 0:02:42.8]} 9. Qxf3 {[%clk 0:02:56.8]} 9... h6 {[%clk
0:02:39.3]} 10. Be3 {[%clk 0:02:56.6]} 10... e5 {[%clk 0:02:38.2]} 11. d5 {[%clk
0:02:56.4]} 11... Ne7 {[%clk 0:02:38.2]} 12. O-O-O {[%clk 0:02:56.6]} 12... c6
{[%clk 0:02:33.7]} 13. dxc6 {[%clk 0:02:55.7]} 13... bxc6 {[%clk 0:02:32.9]} 14.
g4 {[%clk 0:02:54.9]} 14... Nh7 {[%clk 0:02:26.8]} 15. h4 {[%clk 0:02:53.6]}
15... Rb8 {[%clk 0:02:23.6]} 16. h5 {[%clk 0:02:51.6]} 16... g5 {[%clk
0:02:22.9]} 17. Nf1 {[%clk 0:02:50.9]} 17... Qa5 {[%clk 0:02:19.8]} 18. Bb1
{[%clk 0:02:50.9]} 18... Rxb2 {[%clk 0:01:57.3]} 19. Kxb2 {[%clk 0:02:46.1]}
19... Rb8+ {[%clk 0:01:54.6]} 20. Kc2 {[%clk 0:02:44.5]} 20... Qa4+ {[%clk
0:01:46.9]} 21. Kd2 {[%clk 0:02:41.2]} 21... Rb2+ {[%clk 0:01:39.5]} 22. Ke1
{[%clk 0:02:38.9]} 22... Qb5 {[%clk 0:01:24.5]} 23. Nd2 {[%clk 0:02:37.3]} 23...
d5 {[%clk 0:01:12.8]} 24. Qe2 {[%clk 0:02:36.7]} 24... Qa5 {[%clk 0:01:11.5]}
25. Nb3 {[%clk 0:02:34.3]} 25... Rxe2+ {[%clk 0:01:09.1]} 26. Kxe2 {[%clk
0:02:33.2]} 26... Qxc3 {[%clk 0:01:05]} 27. Rc1 {[%clk 0:02:28.9]} 27... Qb2+
{[%clk 0:01:03.2]} 28. Rc2 {[%clk 0:02:28.9]} 28... Qa3 {[%clk 0:01:02.9]} 29.
Bc5 {[%clk 0:02:29]} 29... Qa6+ {[%clk 0:01:02.3]} 30. Ke1 {[%clk 0:02:26.6]}
30... Bf8 {[%clk 0:01:00.8]} 31. Rh3 {[%clk 0:02:22.7]} 31... d4 {[%clk
0:01:00.2]} 32. Rc1 {[%clk 0:02:18]} 32... Nc8 {[%clk 0:00:59.6]} 33. Bd3 {[%clk
0:02:18.7]} 33... Qxa2 {[%clk 0:00:57.4]} 34. Bxf8 {[%clk 0:02:16.5]} 34... Nxf8
{[%clk 0:00:55.9]} 35. Bc4 {[%clk 0:02:16.5]} 35... Qa3 {[%clk 0:00:51.6]} 36.
Ra1 {[%clk 0:02:15.6]} 36... Qb4+ {[%clk 0:00:50.9]} 37. Nd2 {[%clk 0:02:14.8]}
37... Nd6 {[%clk 0:00:49.7]} 38. Rb1 {[%clk 0:02:14.7]} 38... Qa5 {[%clk
0:00:47.9]} 39. Bb3 {[%clk 0:02:14.7]} 39... c5 {[%clk 0:00:47.3]} 40. Kd1
{[%clk 0:02:14.9]} 40... c4 {[%clk 0:00:47.1]} 41. Nxc4 {[%clk 0:02:12.4]} 41...
Nxc4 {[%clk 0:00:47.2]} 42. Bxc4 {[%clk 0:02:13.1]} 42... Qa4+ {[%clk
0:00:47.4]} 43. Bb3 {[%clk 0:02:13.1]} 43... Qc6 {[%clk 0:00:47.4]} 44. Bd5
{[%clk 0:02:11.5]} 44... Qa4+ {[%clk 0:00:47.3]} 45. Bb3 {[%clk 0:02:11.1]}
45... Qc6 {[%clk 0:00:47.1]} 46. Bd5 {[%clk 0:02:08]} 46... Qa4+ {[%clk
0:00:47]} 47. Bb3 {[%clk 0:02:08.1]} 1/2-1/2

[Event "Late-Titled-Tuesday-Blitz-September-05-2023"]
[Site "Chess.com"]
[Date "2023.09.05"]
[Round "2"]
[White "2346PL"]
[Black "a-z30"]
[Result "0-1"]
[WhiteElo "2480"]
[BlackElo "2307"]
[TimeControl "180+1"]
[EndTime "14:15:43 PDT"]
[Termination "a-z30 won by resignation"]

1. Nf3 {[%clk 0:03:00.9]} 1... d6 {[%clk 0:03:00.9]} 2. d4 {[%clk 0:03:00.2]}
2... Nf6 {[%clk 0:03:01.8]} 3. g3 {[%clk 0:02:59.5]} 3... g6 {[%clk 0:03:02.7]}
4. Bg2 {[%clk 0:02:59.3]} 4... Bg7 {[%clk 0:03:03.4]} 5. c4 {[%clk 0:02:59.6]}
5... O-O {[%clk 0:03:04.2]} 6. O-O {[%clk 0:02:59.6]} 6... c6 {[%clk 0:03:04.8]}
7. Nc3 {[%clk 0:02:59.8]} 7... Bf5 {[%clk 0:03:05.5]} 8. Nd2 {[%clk 0:02:58.9]}
8... d5 {[%clk 0:03:05.1]} 9. Qb3 {[%clk 0:02:57.1]} 9... Qb6 {[%clk 0:02:35.2]}
10. Qxb6 {[%clk 0:02:51.3]} 10... axb6 {[%clk 0:02:34.8]} 11. cxd5 {[%clk
0:02:51.6]} 11... cxd5 {[%clk 0:02:35.7]} 12. Nxd5 {[%clk 0:02:50.9]} 12... Nxd5
{[%clk 0:02:35.2]} 13. Bxd5 {[%clk 0:02:51]} 13... Nc6 {[%clk 0:02:20.1]} 14. e3
{[%clk 0:02:37]} 14... Rfd8 {[%clk 0:02:17.7]} 15. Be4 {[%clk 0:02:12]} 15...
Bxe4 {[%clk 0:01:58.5]} 16. Nxe4 {[%clk 0:02:11.8]} 16... e5 {[%clk 0:01:59.4]}
17. dxe5 {[%clk 0:02:02.7]} 17... Nxe5 {[%clk 0:01:56.3]} 18. Kg2 {[%clk
0:02:02.3]} 18... Nd3 {[%clk 0:01:50.9]} 19. Nc3 {[%clk 0:01:58.5]} 19... Rac8
{[%clk 0:01:40.7]} 20. a4 {[%clk 0:01:53.6]} 20... Bxc3 {[%clk 0:01:16.4]} 21.
bxc3 {[%clk 0:01:53.4]} 21... Rxc3 {[%clk 0:01:17.3]} 22. Bd2 {[%clk 0:01:53.5]}
22... Rc2 {[%clk 0:01:16.9]} 23. Rfd1 {[%clk 0:01:47.3]} 23... Nb2 {[%clk
0:01:14.3]} 24. Rdc1 {[%clk 0:01:30.4]} 24... Rdxd2 {[%clk 0:01:12.6]} 25. Rxc2
{[%clk 0:01:30.5]} 25... Rxc2 {[%clk 0:01:12.4]} 26. a5 {[%clk 0:01:27]} 26...
bxa5 {[%clk 0:01:12]} 27. Rxa5 {[%clk 0:01:27.4]} 27... Nd3 {[%clk 0:01:11.5]}
28. Kh3 {[%clk 0:01:22.3]} 28... Nxf2+ {[%clk 0:01:10.8]} 29. Kh4 {[%clk
0:01:22.8]} 29... Rc4+ {[%clk 0:01:02.5]} 30. Kg5 {[%clk 0:01:23.1]} 30... Kg7
{[%clk 0:01:01.7]} 0-1

[Event "Late-Titled-Tuesday-Blitz-September-05-2023"]
[Site "Chess.com"]
[Date "2023.09.05"]
[Round "2"]
[White "IMSlavin"]
[Black "archess2"]
[Result "1-0"]
[WhiteElo "2159"]
[BlackElo "2356"]
[TimeControl "180+1"]
[EndTime "14:15:43 PDT"]
[Termination "IMSlavin won by resignation"]

1. e4 {[%clk 0:02:59.5]} 1... c5 {[%clk 0:03:00.2]} 2. g3 {[%clk 0:02:59.3]}
2... g6 {[%clk 0:03:00.4]} 3. Bg2 {[%clk 0:03:00.1]} 3... Bg7 {[%clk 0:03:01.2]}
4. Ne2 {[%clk 0:03:00.6]} 4... Nc6 {[%clk 0:03:01.6]} 5. O-O {[%clk 0:03:01.5]}
5... d6 {[%clk 0:03:02.1]} 6. Nbc3 {[%clk 0:03:02.2]} 6... e6 {[%clk 0:03:02.6]}
7. a3 {[%clk 0:03:03.1]} 7... Nge7 {[%clk 0:03:03.2]} 8. Rb1 {[%clk 0:03:03.7]}
8... O-O {[%clk 0:03:03.8]} 9. b4 {[%clk 0:03:04.6]} 9... b6 {[%clk 0:03:03.4]}
10. d3 {[%clk 0:03:03.8]} 10... Nd4 {[%clk 0:03:03.4]} 11. Nxd4 {[%clk
0:03:03.4]} 11... cxd4 {[%clk 0:03:03.6]} 12. Ne2 {[%clk 0:03:03.7]} 12... e5
{[%clk 0:03:04.2]} 13. f4 {[%clk 0:03:03.7]} 13... Qc7 {[%clk 0:03:04.3]} 14.
Bb2 {[%clk 0:02:59.5]} 14... Bd7 {[%clk 0:03:00.6]} 15. c4 {[%clk 0:02:58.4]}
15... dxc3 {[%clk 0:03:00.3]} 16. Nxc3 {[%clk 0:02:56]} 16... Rac8 {[%clk
0:03:00.8]} 17. Rc1 {[%clk 0:02:55.3]} 17... exf4 {[%clk 0:02:54.6]} 18. Nd5
{[%clk 0:02:49.7]} 18... Qd8 {[%clk 0:02:54.9]} 19. Bxg7 {[%clk 0:02:49.1]}
19... Kxg7 {[%clk 0:02:55.1]} 20. Rxc8 {[%clk 0:02:46.7]} 20... Bxc8 {[%clk
0:02:54.9]} 21. Qa1+ {[%clk 0:02:42.2]} 21... f6 {[%clk 0:02:52.5]} 22. Nxe7
{[%clk 0:02:17.6]} 22... Qxe7 {[%clk 0:02:52.3]} 23. Rxf4 {[%clk 0:02:18.1]}
23... Qe5 {[%clk 0:02:45.3]} 24. d4 {[%clk 0:02:15]} 24... Qb5 {[%clk
0:02:42.3]} 25. Bf1 {[%clk 0:02:08.4]} 25... Qc6 {[%clk 0:02:39.5]} 26. Qe1
{[%clk 0:01:52.9]} 26... Bb7 {[%clk 0:02:37.3]} 27. Bg2 {[%clk 0:01:52.8]} 27...
Qc4 {[%clk 0:02:34.5]} 28. Qe3 {[%clk 0:01:49.9]} 28... Re8 {[%clk 0:02:31.4]}
29. Rf1 {[%clk 0:01:46.7]} 29... Qe6 {[%clk 0:02:29]} 30. Re1 {[%clk 0:01:39.2]}
30... Rc8 {[%clk 0:02:05.2]} 31. Qf4 {[%clk 0:01:31.9]} 31... Rc2 {[%clk
0:02:04.6]} 32. h4 {[%clk 0:01:10.4]} 32... Qa2 {[%clk 0:01:56.3]} 33. Qf3
{[%clk 0:00:58.3]} 33... Rf2 {[%clk 0:01:54.7]} 34. Qxf2 {[%clk 0:00:56.3]}
34... Qxa3 {[%clk 0:01:53.6]} 35. e5 {[%clk 0:00:52.9]} 1-0